[Event "Titled Tuesday Blitz February 07 Early 2023"]
[White "Jimenez, Joaquin"]
[Black "JonSnowNW1"]
[WhiteFideId "109860"]
[WhiteElo "2195"]
[BlackElo "2329"]
[Result "1/2-1/2"]
[Round "10"]
[TimeControl "180+2"]
[Date "2023.02.07"]
[WhiteClock "0:01:24"]
[BlackClock "0:00:08"]

1. c4 {[%clk 0:02:54]}  c6 {[%clk 0:02:58]} 2. e4 {[%clk 0:02:54]}  d5 {[%clk 0:02:57]} 3. exd5 {[%clk 0:02:54]}  cxd5 {[%clk 0:02:58]} 4. cxd5 {[%clk 0:02:55]}  Nf6 {[%clk 0:02:57]} 5. Nc3 {[%clk 0:02:55]}  Nxd5 {[%clk 0:02:51]} 6. Nf3 {[%clk 0:02:54]}  Nc6 {[%clk 0:02:49]} 7. Bb5 {[%clk 0:02:51]}  Nb4 {[%clk 0:02:42]} 8. d4 {[%clk 0:02:46]}  e6 {[%clk 0:02:37]} 9. a3 {[%clk 0:02:37]}  Nd5 {[%clk 0:02:36]} 10. Ne5 {[%clk 0:02:36]}  Bd7 {[%clk 0:02:33]} 11. Qa4 {[%clk 0:02:19]}  Nxe5 {[%clk 0:01:17]} 12. dxe5 {[%clk 0:02:16]}  Nxc3 {[%clk 0:01:18]} 13. Bxd7+ {[%clk 0:02:15]}  Qxd7 {[%clk 0:01:17]} 14. Qxd7+ {[%clk 0:02:16]}  Kxd7 {[%clk 0:01:17]} 15. bxc3 {[%clk 0:02:16]}  Kc6 {[%clk 0:01:17]} 16. Be3 {[%clk 0:02:16]}  Bc5 {[%clk 0:01:16]} 17. Bd4 {[%clk 0:02:13]}  Rhd8 {[%clk 0:01:15]} 18. O-O-O {[%clk 0:02:11]}  Bxa3+ {[%clk 0:01:13]} 19. Kc2 {[%clk 0:02:11]}  Bc5 {[%clk 0:01:13]} 20. Rd3 {[%clk 0:02:11]}  Bxd4 {[%clk 0:01:13]} 21. cxd4 {[%clk 0:02:10]}  Kd5 {[%clk 0:01:12]} 22. Rb1 {[%clk 0:02:10]}  Rac8+ {[%clk 0:01:08]} 23. Kd2 {[%clk 0:02:08]}  b6 {[%clk 0:01:07]} 24. Rb5+ {[%clk 0:01:59]}  Kc6 {[%clk 0:00:52]} 25. Rb1 {[%clk 0:01:55]}  Kb7 {[%clk 0:00:52]} 26. f4 {[%clk 0:01:54]}  a6 {[%clk 0:00:50]} 27. g4 {[%clk 0:01:53]}  Rc4 {[%clk 0:00:49]} 28. Ke3 {[%clk 0:01:53]}  b5 {[%clk 0:00:49]} 29. f5 {[%clk 0:01:53]}  Kb6 {[%clk 0:00:48]} 30. h4 {[%clk 0:01:51]}  b4 {[%clk 0:00:47]} 31. h5 {[%clk 0:01:51]}  a5 {[%clk 0:00:46]} 32. g5 {[%clk 0:01:48]}  exf5 {[%clk 0:00:46]} 33. g6 {[%clk 0:01:42]}  hxg6 {[%clk 0:00:45]} 34. hxg6 {[%clk 0:01:42]}  fxg6 {[%clk 0:00:46]} 35. Rg1 {[%clk 0:01:42]}  f4+ {[%clk 0:00:26]} 36. Ke4 {[%clk 0:01:41]}  a4 {[%clk 0:00:21]} 37. Rxg6+ {[%clk 0:01:41]}  Rc6 {[%clk 0:00:20]} 38. Rxg7 {[%clk 0:01:37]}  b3 {[%clk 0:00:20]} 39. d5 {[%clk 0:01:36]}  b2 {[%clk 0:00:19]} 40. dxc6 {[%clk 0:01:32]}  Rxd3 {[%clk 0:00:18]} 41. Rb7+ {[%clk 0:01:32]}  Kxc6 {[%clk 0:00:18]} 42. Rxb2 {[%clk 0:01:32]}  Rb3 {[%clk 0:00:12]} 43. Rc2+ {[%clk 0:01:29]}  Kd7 {[%clk 0:00:11]} 44. Kxf4 {[%clk 0:01:30]}  a3 {[%clk 0:00:12]} 45. Rd2+ {[%clk 0:01:26]}  Ke6 {[%clk 0:00:12]} 46. Rd6+ {[%clk 0:01:26]}  Ke7 {[%clk 0:00:12]} 47. Ra6 {[%clk 0:01:27]}  Rb4+ {[%clk 0:00:12]} 48. Kf5 {[%clk 0:01:27]}  Rb3 {[%clk 0:00:11]} 49. Ra7+ {[%clk 0:01:27]}  Kf8 {[%clk 0:00:10]} 50. Kf6 {[%clk 0:01:27]}  Rf3+ {[%clk 0:00:09]} 51. Ke6 {[%clk 0:01:27]}  Rb3 {[%clk 0:00:10]} 52. Ra8+ {[%clk 0:01:26]}  Kg7 {[%clk 0:00:09]} 53. Ra7+ {[%clk 0:01:24]}  Kf8 {[%clk 0:00:09]} 54. Kf6 {[%clk 0:01:24]}  Rf3+ {[%clk 0:00:08]} 55. Ke6 {[%clk 0:01:24]}  Rb3 {[%clk 0:00:08]} 1/2-1/2


[Site "https://www.chess.com"]

[Event "Titled Tuesday Blitz February 07 Early 2023"]
[White "Andrews, Todd"]
[Black "Jenkins, Drake"]
[WhiteFideId "2012456"]
[BlackFideId "2022397"]
[WhiteElo "2220"]
[BlackElo "2130"]
[Result "1-0"]
[Round "10"]
[TimeControl "180+2"]
[Date "2023.02.07"]
[WhiteClock "0:01:46"]
[BlackClock "0:00:02"]

1. e4 {[%clk 0:03:00]}  c6 {[%clk 0:02:54]} 2. d4 {[%clk 0:02:56]}  d5 {[%clk 0:02:55]} 3. Nd2 {[%clk 0:02:56]}  dxe4 {[%clk 0:02:55]} 4. Nxe4 {[%clk 0:02:57]}  Nf6 {[%clk 0:02:55]} 5. Nxf6+ {[%clk 0:02:57]}  exf6 {[%clk 0:02:56]} 6. Bc4 {[%clk 0:02:56]}  Bd6 {[%clk 0:02:56]} 7. c3 {[%clk 0:02:56]}  O-O {[%clk 0:02:55]} 8. Ne2 {[%clk 0:02:56]}  Nd7 {[%clk 0:02:53]} 9. Be3 {[%clk 0:02:57]}  b5 {[%clk 0:02:52]} 10. Bb3 {[%clk 0:02:54]}  a5 {[%clk 0:02:51]} 11. a4 {[%clk 0:02:52]}  Re8 {[%clk 0:02:44]} 12. d5 {[%clk 0:02:48]}  Nc5 {[%clk 0:02:37]} 13. dxc6 {[%clk 0:02:44]}  bxa4 {[%clk 0:02:21]} 14. Bd5 {[%clk 0:02:41]}  Qc7 {[%clk 0:02:01]} 15. h3 {[%clk 0:02:33]}  Rb8 {[%clk 0:01:51]} 16. Ra2 {[%clk 0:02:11]}  Ba6 {[%clk 0:01:34]} 17. c4 {[%clk 0:02:10]}  Rb4 {[%clk 0:00:47]} 18. Qc2 {[%clk 0:02:09]}  f5 {[%clk 0:00:26]} 19. O-O {[%clk 0:01:58]}  f4 {[%clk 0:00:24]} 20. Nxf4 {[%clk 0:01:58]}  Bxf4 {[%clk 0:00:12]} 21. Bxc5 {[%clk 0:01:58]}  Rbb8 {[%clk 0:00:04]} 22. Qxa4 {[%clk 0:01:54]}  Bh2+ {[%clk 0:00:03]} 23. Kh1 {[%clk 0:01:54]}  Bd6 {[%clk 0:00:03]} 24. Qxa5 {[%clk 0:01:49]}  Qxa5 {[%clk 0:00:01]} 25. Rxa5 {[%clk 0:01:49]}  Bxc5 {[%clk 0:00:02]} 26. Rxc5 {[%clk 0:01:49]}  Rxb2 {[%clk 0:00:02]} 27. c7 {[%clk 0:01:49]}  Bc8 {[%clk 0:00:02]} 28. Rb5 {[%clk 0:01:46]} 1-0


[Site "https://www.chess.com"]

[Event "Titled Tuesday Blitz February 07 Early 2023"]
[White "Bozorov, Makhsum"]
[Black "Alhadad, Mahmoud"]
[WhiteFideId "14201330"]
[BlackFideId "11501863"]
[WhiteElo "2145"]
[BlackElo "1840"]
[Result "1-0"]
[Round "10"]
[TimeControl "180+2"]
[Date "2023.02.07"]
[WhiteClock "0:00:27"]
[BlackClock "0:00:12"]

1. d4 {[%clk 0:03:00]}  d5 {[%clk 0:03:00]} 2. Nf3 {[%clk 0:03:00]}  Nc6 {[%clk 0:03:00]} 3. g3 {[%clk 0:03:00]}  Bg4 {[%clk 0:02:57]} 4. Bg2 {[%clk 0:03:00]}  e6 {[%clk 0:02:58]} 5. O-O {[%clk 0:03:00]}  Nf6 {[%clk 0:02:57]} 6. c4 {[%clk 0:03:00]}  Be7 {[%clk 0:02:54]} 7. Nc3 {[%clk 0:02:54]}  O-O {[%clk 0:02:53]} 8. Ne5 {[%clk 0:02:52]}  Bh5 {[%clk 0:02:40]} 9. Nxc6 {[%clk 0:02:50]}  bxc6 {[%clk 0:02:40]} 10. Qa4 {[%clk 0:02:50]}  c5 {[%clk 0:02:35]} 11. cxd5 {[%clk 0:02:46]}  cxd4 {[%clk 0:02:33]} 12. Qxd4 {[%clk 0:02:44]}  exd5 {[%clk 0:02:32]} 13. Nxd5 {[%clk 0:02:27]}  Rb8 {[%clk 0:02:26]} 14. Nxe7+ {[%clk 0:02:18]}  Qxe7 {[%clk 0:02:24]} 15. Bg5 {[%clk 0:02:19]}  Qxe2 {[%clk 0:02:18]} 16. Bxf6 {[%clk 0:02:16]}  gxf6 {[%clk 0:02:19]} 17. Qxf6 {[%clk 0:02:16]}  Qxb2 {[%clk 0:02:19]} 18. Qf4 {[%clk 0:02:05]}  Qg7 {[%clk 0:02:01]} 19. Qxc7 {[%clk 0:02:00]}  Rfc8 {[%clk 0:02:01]} 20. Qxa7 {[%clk 0:01:58]}  Rb2 {[%clk 0:01:57]} 21. a4 {[%clk 0:01:50]}  Rcc2 {[%clk 0:01:56]} 22. Qa8+ {[%clk 0:01:36]}  Qf8 {[%clk 0:01:55]} 23. Qxf8+ {[%clk 0:01:36]}  Kxf8 {[%clk 0:01:56]} 24. a5 {[%clk 0:01:29]}  Be2 {[%clk 0:01:23]} 25. Rfc1 {[%clk 0:01:27]}  Ra2 {[%clk 0:01:13]} 26. h3 {[%clk 0:00:57]}  Rxc1+ {[%clk 0:01:11]} 27. Rxc1 {[%clk 0:00:56]}  Rxa5 {[%clk 0:01:11]} 28. Be4 {[%clk 0:00:49]}  Kg7 {[%clk 0:01:09]} 29. Rc7 {[%clk 0:00:47]}  Ra1+ {[%clk 0:01:00]} 30. Kh2 {[%clk 0:00:47]}  Ra6 {[%clk 0:00:53]} 31. Bd5 {[%clk 0:00:43]}  Rf6 {[%clk 0:00:52]} 32. f4 {[%clk 0:00:43]}  h6 {[%clk 0:00:47]} 33. Kg1 {[%clk 0:00:42]}  Bd1 {[%clk 0:00:45]} 34. Kf2 {[%clk 0:00:40]}  Ba4 {[%clk 0:00:40]} 35. Ke3 {[%clk 0:00:36]}  Bb5 {[%clk 0:00:39]} 36. g4 {[%clk 0:00:35]}  Bf1 {[%clk 0:00:37]} 37. h4 {[%clk 0:00:35]}  Bh3 {[%clk 0:00:34]} 38. g5 {[%clk 0:00:35]}  hxg5 {[%clk 0:00:34]} 39. hxg5 {[%clk 0:00:36]}  Rf5 {[%clk 0:00:26]} 40. Be6 {[%clk 0:00:35]}  Rc5 {[%clk 0:00:21]} 41. Rxc5 {[%clk 0:00:33]}  Bxe6 {[%clk 0:00:18]} 42. f5 {[%clk 0:00:33]}  Bb3 {[%clk 0:00:17]} 43. Kf4 {[%clk 0:00:33]}  Ba2 {[%clk 0:00:17]} 44. Rc7 {[%clk 0:00:33]}  Kg8 {[%clk 0:00:15]} 45. Ke5 {[%clk 0:00:31]}  Bb3 {[%clk 0:00:14]} 46. Kf6 {[%clk 0:00:31]}  Ba2 {[%clk 0:00:14]} 47. Rc8+ {[%clk 0:00:30]}  Kh7 {[%clk 0:00:14]} 48. Rf8 {[%clk 0:00:29]}  Bb3 {[%clk 0:00:08]} 49. Rxf7+ {[%clk 0:00:27]}  Bxf7 {[%clk 0:00:09]} 50. Kxf7 {[%clk 0:00:27]}  Kh8 {[%clk 0:00:10]} 51. f6 {[%clk 0:00:26]}  Kh7 {[%clk 0:00:10]} 52. g6+ {[%clk 0:00:26]}  Kh8 {[%clk 0:00:11]} 53. g7+ {[%clk 0:00:26]}  Kh7 {[%clk 0:00:11]} 54. g8=Q+ {[%clk 0:00:27]}  Kh6 {[%clk 0:00:12]} 55. Qg6# {[%clk 0:00:27]} 1-0


[Site "https://www.chess.com"]

[Event "Titled Tuesday Blitz February 07 Early 2023"]
[White "Gatterer, Florian"]
[Black "Gharamian, Tigran"]
[WhiteFideId "811688"]
[BlackFideId "13301527"]
[WhiteElo "2170"]
[BlackElo "2601"]
[Result "0-1"]
[Round "10"]
[TimeControl "180+2"]
[Date "2023.02.07"]
[WhiteClock "0:00:03"]
[BlackClock "0:00:15"]

1. e4 {[%clk 0:03:00]}  c6 {[%clk 0:02:58]} 2. d4 {[%clk 0:03:00]}  d5 {[%clk 0:02:58]} 3. e5 {[%clk 0:03:00]}  c5 {[%clk 0:02:58]} 4. dxc5 {[%clk 0:03:00]}  Nc6 {[%clk 0:02:58]} 5. Nf3 {[%clk 0:02:49]}  Bg4 {[%clk 0:02:57]} 6. Bb5 {[%clk 0:02:47]}  Qa5+ {[%clk 0:02:57]} 7. Nc3 {[%clk 0:02:46]}  e6 {[%clk 0:02:58]} 8. a3 {[%clk 0:02:38]}  Bxc5 {[%clk 0:02:50]} 9. O-O {[%clk 0:02:21]}  Qc7 {[%clk 0:02:26]} 10. Bf4 {[%clk 0:02:15]}  Ne7 {[%clk 0:02:20]} 11. Be2 {[%clk 0:02:06]}  a6 {[%clk 0:02:02]} 12. b4 {[%clk 0:01:58]}  Bxf3 {[%clk 0:01:34]} 13. bxc5 {[%clk 0:01:42]}  Bxe2 {[%clk 0:01:34]} 14. Qxe2 {[%clk 0:01:33]}  Ng6 {[%clk 0:01:20]} 15. Bg3 {[%clk 0:01:32]}  Nd4 {[%clk 0:01:13]} 16. Qd3 {[%clk 0:01:22]}  Qxc5 {[%clk 0:01:12]} 17. Na4 {[%clk 0:01:21]}  Qa7 {[%clk 0:01:08]} 18. Rab1 {[%clk 0:01:06]}  b5 {[%clk 0:01:06]} 19. c3 {[%clk 0:00:56]}  Nf5 {[%clk 0:00:57]} 20. Nb2 {[%clk 0:00:56]}  O-O {[%clk 0:00:49]} 21. a4 {[%clk 0:00:56]}  Nxg3 {[%clk 0:00:40]} 22. Qxg3 {[%clk 0:00:54]}  Rac8 {[%clk 0:00:37]} 23. axb5 {[%clk 0:00:50]}  axb5 {[%clk 0:00:37]} 24. h4 {[%clk 0:00:48]}  Qc7 {[%clk 0:00:31]} 25. Rfe1 {[%clk 0:00:39]}  Qxc3 {[%clk 0:00:30]} 26. Nd3 {[%clk 0:00:39]}  Ne7 {[%clk 0:00:23]} 27. h5 {[%clk 0:00:26]}  Nf5 {[%clk 0:00:23]} 28. Qf3 {[%clk 0:00:23]}  Nd4 {[%clk 0:00:22]} 29. Qg3 {[%clk 0:00:16]}  Nf5 {[%clk 0:00:22]} 30. Qf3 {[%clk 0:00:16]}  Rc4 {[%clk 0:00:23]} 31. h6 {[%clk 0:00:15]}  Nxh6 {[%clk 0:00:22]} 32. Rxb5 {[%clk 0:00:15]}  Nf5 {[%clk 0:00:21]} 33. Rb7 {[%clk 0:00:14]}  Rd4 {[%clk 0:00:21]} 34. Rd1 {[%clk 0:00:14]}  Qc6 {[%clk 0:00:20]} 35. Rb3 {[%clk 0:00:12]}  Qc2 {[%clk 0:00:19]} 36. Rbb1 {[%clk 0:00:10]}  h6 {[%clk 0:00:19]} 37. Rbc1 {[%clk 0:00:10]}  Qb3 {[%clk 0:00:19]} 38. g4 {[%clk 0:00:10]}  Nh4 {[%clk 0:00:18]} 39. Qe3 {[%clk 0:00:10]}  Re4 {[%clk 0:00:16]} 40. Qg3 {[%clk 0:00:08]}  Ng6 {[%clk 0:00:16]} 41. f3 {[%clk 0:00:08]}  Re3 {[%clk 0:00:15]} 42. Ne1 {[%clk 0:00:05]}  Nxe5 {[%clk 0:00:15]} 43. Qf2 {[%clk 0:00:02]}  Nxf3+ {[%clk 0:00:15]} 44. Nxf3 {[%clk 0:00:02]}  Rxf3 {[%clk 0:00:15]} 45. Qd2 {[%clk 0:00:03]}  Rg3+ {[%clk 0:00:16]} 46. Kf1 {[%clk 0:00:03]}  Qf3+ {[%clk 0:00:16]} 47. Qf2 {[%clk 0:00:03]}  Qxg4 {[%clk 0:00:15]} 0-1


[Site "https://www.chess.com"]

[Event "Titled Tuesday Blitz February 07 Early 2023"]
[White "Rosenberg, Evan S"]
[Black "Tobares, Leandro"]
[WhiteFideId "2019299"]
[BlackFideId "106402"]
[WhiteElo "1956"]
[BlackElo "2189"]
[Result "1-0"]
[Round "10"]
[TimeControl "180+2"]
[Date "2023.02.07"]
[WhiteClock "0:02:31"]
[BlackClock "0:01:22"]

1. d4 {[%clk 0:02:57]}  Nf6 {[%clk 0:02:28]} 2. Nf3 {[%clk 0:02:57]}  e6 {[%clk 0:02:26]} 3. g3 {[%clk 0:02:57]}  b5 {[%clk 0:02:17]} 4. Bg2 {[%clk 0:02:56]}  Bb7 {[%clk 0:02:12]} 5. O-O {[%clk 0:02:57]}  Be7 {[%clk 0:02:07]} 6. Bg5 {[%clk 0:02:55]}  O-O {[%clk 0:02:05]} 7. Qd3 {[%clk 0:02:55]}  b4 {[%clk 0:01:52]} 8. Bxf6 {[%clk 0:02:45]}  Bxf6 {[%clk 0:01:49]} 9. Ng5 {[%clk 0:02:45]}  Bxg5 {[%clk 0:01:44]} 10. Bxb7 {[%clk 0:02:45]}  Nc6 {[%clk 0:01:38]} 11. Bxa8 {[%clk 0:02:41]}  Qxa8 {[%clk 0:01:34]} 12. e4 {[%clk 0:02:39]}  e5 {[%clk 0:01:27]} 13. d5 {[%clk 0:02:32]}  Nd4 {[%clk 0:01:22]} 14. c3 {[%clk 0:02:31]} 1-0


[Site "https://www.chess.com"]

[Event "Titled Tuesday Blitz February 07 Early 2023"]
[White "Sputnik-11"]
[Black "Dilmukhametov, Artur"]
[BlackFideId "24179922"]
[WhiteElo "2381"]
[BlackElo "2276"]
[Result "1-0"]
[Round "10"]
[TimeControl "180+2"]
[Date "2023.02.07"]
[WhiteClock "0:00:02"]
[BlackClock "0:00:09"]

1. Nf3 {[%clk 0:03:00]}  Nf6 {[%clk 0:02:57]} 2. c4 {[%clk 0:03:01]}  e6 {[%clk 0:02:57]} 3. g3 {[%clk 0:02:59]}  d5 {[%clk 0:02:57]} 4. d4 {[%clk 0:02:57]}  dxc4 {[%clk 0:02:57]} 5. Bg2 {[%clk 0:02:58]}  Nc6 {[%clk 0:02:40]} 6. Qa4 {[%clk 0:02:53]}  Be7 {[%clk 0:02:12]} 7. O-O {[%clk 0:02:41]}  O-O {[%clk 0:02:12]} 8. Qxc4 {[%clk 0:02:41]}  Bd7 {[%clk 0:02:09]} 9. Rd1 {[%clk 0:02:32]}  Ne4 {[%clk 0:01:59]} 10. Qd3 {[%clk 0:02:20]}  Nd6 {[%clk 0:01:57]} 11. a3 {[%clk 0:02:20]}  Bf6 {[%clk 0:01:53]} 12. e4 {[%clk 0:02:16]}  e5 {[%clk 0:01:31]} 13. d5 {[%clk 0:02:16]}  Ne7 {[%clk 0:01:19]} 14. Nc3 {[%clk 0:02:15]}  Nec8 {[%clk 0:01:12]} 15. h3 {[%clk 0:01:51]}  c6 {[%clk 0:01:11]} 16. b4 {[%clk 0:01:36]}  cxd5 {[%clk 0:01:07]} 17. Nxd5 {[%clk 0:01:37]}  Bc6 {[%clk 0:00:57]} 18. Bb2 {[%clk 0:01:32]}  Bxd5 {[%clk 0:00:53]} 19. Qxd5 {[%clk 0:01:28]}  Re8 {[%clk 0:00:54]} 20. Bxe5 {[%clk 0:01:18]}  Bxe5 {[%clk 0:00:48]} 21. Nxe5 {[%clk 0:01:18]}  Qe7 {[%clk 0:00:42]} 22. f4 {[%clk 0:00:57]}  Rd8 {[%clk 0:00:22]} 23. Nc4 {[%clk 0:00:41]}  Nb6 {[%clk 0:00:15]} 24. Nxb6 {[%clk 0:00:39]}  axb6 {[%clk 0:00:16]} 25. e5 {[%clk 0:00:29]}  Nf5 {[%clk 0:00:15]} 26. Qxb7 {[%clk 0:00:27]}  Qe6 {[%clk 0:00:14]} 27. Qxa8 {[%clk 0:00:22]}  Rxa8 {[%clk 0:00:14]} 28. Bxa8 {[%clk 0:00:22]}  g5 {[%clk 0:00:14]} 29. Kh2 {[%clk 0:00:11]}  Qb3 {[%clk 0:00:12]} 30. Rg1 {[%clk 0:00:08]}  Qb2+ {[%clk 0:00:10]} 31. Kh1 {[%clk 0:00:05]}  Qb3 {[%clk 0:00:11]} 32. Kh2 {[%clk 0:00:05]}  Qb2+ {[%clk 0:00:11]} 33. Kh1 {[%clk 0:00:05]}  Qc3 {[%clk 0:00:11]} 34. Kh2 {[%clk 0:00:04]}  Qd2+ {[%clk 0:00:10]} 35. Kh1 {[%clk 0:00:04]}  Qe3 {[%clk 0:00:11]} 36. Kh2 {[%clk 0:00:05]}  Qd2+ {[%clk 0:00:10]} 37. Rg2 {[%clk 0:00:04]}  Qd4 {[%clk 0:00:09]} 38. Rf1 {[%clk 0:00:02]}  Ne3 {[%clk 0:00:09]} 39. Rgf2 {[%clk 0:00:02]} 1-0


[Site "https://www.chess.com"]

[Event "Titled Tuesday Blitz February 07 Early 2023"]
[White "ritanovikova"]
[Black "Shubenkova, Veronika"]
[BlackFideId "44124040"]
[WhiteElo "2202"]
[BlackElo "1960"]
[Result "1-0"]
[Round "10"]
[TimeControl "180+2"]
[Date "2023.02.07"]
[WhiteClock "0:00:19"]
[BlackClock "0:00:51"]

1. e4 {[%clk 0:02:59]}  c6 {[%clk 0:02:56]} 2. d4 {[%clk 0:02:59]}  d5 {[%clk 0:02:56]} 3. exd5 {[%clk 0:02:59]}  cxd5 {[%clk 0:02:56]} 4. Bd3 {[%clk 0:03:00]}  e6 {[%clk 0:02:56]} 5. Nf3 {[%clk 0:03:00]}  Nc6 {[%clk 0:02:56]} 6. O-O {[%clk 0:02:59]}  Nf6 {[%clk 0:02:56]} 7. h3 {[%clk 0:02:58]}  Bd6 {[%clk 0:02:56]} 8. Bg5 {[%clk 0:02:56]}  O-O {[%clk 0:02:55]} 9. b3 {[%clk 0:02:55]}  h6 {[%clk 0:02:54]} 10. Be3 {[%clk 0:02:55]}  Qc7 {[%clk 0:02:53]} 11. c4 {[%clk 0:02:54]}  Bf4 {[%clk 0:02:51]} 12. Nc3 {[%clk 0:02:46]}  Bxe3 {[%clk 0:02:50]} 13. fxe3 {[%clk 0:02:45]}  Qg3 {[%clk 0:02:48]} 14. Qe1 {[%clk 0:02:39]}  Qxe1 {[%clk 0:02:47]} 15. Raxe1 {[%clk 0:02:36]}  Ne7 {[%clk 0:02:40]} 16. e4 {[%clk 0:02:32]}  dxe4 {[%clk 0:02:40]} 17. Nxe4 {[%clk 0:02:30]}  Nxe4 {[%clk 0:02:40]} 18. Bxe4 {[%clk 0:02:31]}  Rd8 {[%clk 0:02:41]} 19. Rd1 {[%clk 0:02:21]}  Rb8 {[%clk 0:02:39]} 20. Ne5 {[%clk 0:02:21]}  f6 {[%clk 0:02:38]} 21. Nf3 {[%clk 0:02:12]}  b6 {[%clk 0:02:32]} 22. Rfe1 {[%clk 0:02:08]}  Kf7 {[%clk 0:02:29]} 23. Kf2 {[%clk 0:01:58]}  Bb7 {[%clk 0:02:29]} 24. Bxb7 {[%clk 0:01:55]}  Rxb7 {[%clk 0:02:29]} 25. Re2 {[%clk 0:01:55]}  Nf5 {[%clk 0:02:27]} 26. g4 {[%clk 0:01:52]}  Nd6 {[%clk 0:02:27]} 27. Rde1 {[%clk 0:01:51]}  Re7 {[%clk 0:02:26]} 28. d5 {[%clk 0:01:46]}  e5 {[%clk 0:02:26]} 29. Nd4 {[%clk 0:01:43]}  Rc7 {[%clk 0:02:21]} 30. Nc6 {[%clk 0:01:42]}  Re8 {[%clk 0:02:18]} 31. Kf3 {[%clk 0:01:35]}  b5 {[%clk 0:02:10]} 32. c5 {[%clk 0:01:32]}  Nb7 {[%clk 0:02:08]} 33. b4 {[%clk 0:01:31]}  a5 {[%clk 0:02:07]} 34. a3 {[%clk 0:01:30]}  axb4 {[%clk 0:02:05]} 35. axb4 {[%clk 0:01:31]}  Ra8 {[%clk 0:02:06]} 36. Re3 {[%clk 0:01:19]}  Ra2 {[%clk 0:02:03]} 37. R1e2 {[%clk 0:01:17]}  Ra4 {[%clk 0:02:02]} 38. Rb2 {[%clk 0:01:16]}  Rc8 {[%clk 0:01:51]} 39. Ree2 {[%clk 0:01:05]}  Ra3+ {[%clk 0:01:50]} 40. Re3 {[%clk 0:01:05]}  Ra4 {[%clk 0:01:50]} 41. Ree2 {[%clk 0:01:04]}  Nd8 {[%clk 0:01:46]} 42. Nxd8+ {[%clk 0:01:04]}  Rxd8 {[%clk 0:01:46]} 43. Red2 {[%clk 0:01:02]}  Ra3+ {[%clk 0:01:46]} 44. Kg2 {[%clk 0:01:00]}  Ke7 {[%clk 0:01:45]} 45. Ra2 {[%clk 0:00:55]}  Rxa2 {[%clk 0:01:44]} 46. Rxa2 {[%clk 0:00:54]}  Rxd5 {[%clk 0:01:44]} 47. Ra5 {[%clk 0:00:50]}  Rd2+ {[%clk 0:01:41]} 48. Kf3 {[%clk 0:00:49]}  Rd3+ {[%clk 0:01:41]} 49. Kg2 {[%clk 0:00:45]}  Ke6 {[%clk 0:01:41]} 50. Rxb5 {[%clk 0:00:45]}  Rb3 {[%clk 0:01:38]} 51. Rb7 {[%clk 0:00:45]}  g5 {[%clk 0:01:33]} 52. c6 {[%clk 0:00:36]}  Rc3 {[%clk 0:01:29]} 53. b5 {[%clk 0:00:35]}  Kd6 {[%clk 0:01:29]} 54. Rd7+ {[%clk 0:00:34]}  Ke6 {[%clk 0:01:29]} 55. Rh7 {[%clk 0:00:30]}  Rc2+ {[%clk 0:01:18]} 56. Kf3 {[%clk 0:00:30]}  Rc3+ {[%clk 0:01:12]} 57. Ke4 {[%clk 0:00:26]}  Rc4+ {[%clk 0:01:10]} 58. Kd3 {[%clk 0:00:25]}  Rc1 {[%clk 0:01:09]} 59. c7 {[%clk 0:00:22]}  Kd5 {[%clk 0:01:07]} 60. b6 {[%clk 0:00:20]}  e4+ {[%clk 0:01:05]} 61. Kd2 {[%clk 0:00:20]}  Rc6 {[%clk 0:00:53]} 62. b7 {[%clk 0:00:20]}  Kd4 {[%clk 0:00:52]} 63. Rd7+ {[%clk 0:00:19]}  Ke5 {[%clk 0:00:51]} 64. c8=Q {[%clk 0:00:19]} 1-0


[Site "https://www.chess.com"]

[Event "Titled Tuesday Blitz February 07 Early 2023"]
[White "Bruned, Boris"]
[Black "Lucassen, Mickey"]
[WhiteFideId "621790"]
[BlackFideId "12919110"]
[WhiteElo "2133"]
[BlackElo "2023"]
[Result "1-0"]
[Round "10"]
[TimeControl "180+2"]
[Date "2023.02.07"]
[WhiteClock "0:00:12"]
[BlackClock "0:00:09"]

1. b3 {[%clk 0:03:00]}  d5 {[%clk 0:02:55]} 2. Bb2 {[%clk 0:03:01]}  Bf5 {[%clk 0:02:56]} 3. e3 {[%clk 0:02:59]}  e6 {[%clk 0:02:56]} 4. Nf3 {[%clk 0:03:00]}  Nf6 {[%clk 0:02:56]} 5. Be2 {[%clk 0:03:00]}  Be7 {[%clk 0:02:57]} 6. O-O {[%clk 0:03:01]}  h6 {[%clk 0:02:57]} 7. d4 {[%clk 0:03:01]}  O-O {[%clk 0:02:57]} 8. c4 {[%clk 0:03:01]}  c5 {[%clk 0:02:58]} 9. Nbd2 {[%clk 0:03:00]}  Nc6 {[%clk 0:02:58]} 10. a3 {[%clk 0:02:52]}  Ne4 {[%clk 0:02:57]} 11. Nxe4 {[%clk 0:02:41]}  dxe4 {[%clk 0:02:53]} 12. Ne5 {[%clk 0:02:41]}  Nxe5 {[%clk 0:02:52]} 13. dxe5 {[%clk 0:02:42]}  Qc7 {[%clk 0:02:52]} 14. Qc2 {[%clk 0:02:36]}  Rfd8 {[%clk 0:02:51]} 15. Rad1 {[%clk 0:02:37]}  g5 {[%clk 0:02:44]} 16. Rxd8+ {[%clk 0:02:37]}  Rxd8 {[%clk 0:02:44]} 17. Rd1 {[%clk 0:02:37]}  Rxd1+ {[%clk 0:02:43]} 18. Qxd1 {[%clk 0:02:37]}  Bf8 {[%clk 0:02:38]} 19. Qd2 {[%clk 0:02:16]}  Bg7 {[%clk 0:02:36]} 20. Qc3 {[%clk 0:02:16]}  Qd7 {[%clk 0:02:35]} 21. h3 {[%clk 0:02:10]}  b6 {[%clk 0:02:33]} 22. Qc2 {[%clk 0:02:04]}  Qc7 {[%clk 0:02:24]} 23. Qc3 {[%clk 0:02:02]}  Kh7 {[%clk 0:02:21]} 24. Bh5 {[%clk 0:01:57]}  Bg6 {[%clk 0:02:21]} 25. Be2 {[%clk 0:01:51]}  h5 {[%clk 0:02:16]} 26. b4 {[%clk 0:01:45]}  Qc6 {[%clk 0:02:02]} 27. Qc2 {[%clk 0:01:38]}  Qc7 {[%clk 0:01:56]} 28. Qc3 {[%clk 0:01:38]}  Bf8 {[%clk 0:01:49]} 29. Qd2 {[%clk 0:01:34]}  Qe7 {[%clk 0:01:43]} 30. Bc3 {[%clk 0:01:30]}  Qc7 {[%clk 0:01:40]} 31. Qd1 {[%clk 0:01:30]}  cxb4 {[%clk 0:01:33]} 32. axb4 {[%clk 0:01:27]}  Kh6 {[%clk 0:01:29]} 33. Qd2 {[%clk 0:01:22]}  a5 {[%clk 0:01:26]} 34. bxa5 {[%clk 0:01:20]}  bxa5 {[%clk 0:01:27]} 35. Bxa5 {[%clk 0:01:20]}  Qxe5 {[%clk 0:01:26]} 36. Bc3 {[%clk 0:01:18]}  Qc7 {[%clk 0:01:24]} 37. Qd4 {[%clk 0:01:15]}  Qe7 {[%clk 0:00:37]} 38. Qh8+ {[%clk 0:01:10]}  Bh7 {[%clk 0:00:37]} 39. Bxh5 {[%clk 0:01:07]}  f5 {[%clk 0:00:27]} 40. Be2 {[%clk 0:00:39]}  Qf7 {[%clk 0:00:27]} 41. Qf6+ {[%clk 0:00:38]}  Qxf6 {[%clk 0:00:26]} 42. Bxf6 {[%clk 0:00:39]}  Bc5 {[%clk 0:00:25]} 43. Bd4 {[%clk 0:00:36]}  Bxd4 {[%clk 0:00:20]} 44. exd4 {[%clk 0:00:37]}  f4 {[%clk 0:00:19]} 45. Bg4 {[%clk 0:00:32]}  Bg8 {[%clk 0:00:18]} 46. Kf1 {[%clk 0:00:26]}  Kg6 {[%clk 0:00:17]} 47. Ke2 {[%clk 0:00:26]}  Kf6 {[%clk 0:00:17]} 48. Kd2 {[%clk 0:00:26]}  Ke7 {[%clk 0:00:18]} 49. Kc3 {[%clk 0:00:26]}  Kd6 {[%clk 0:00:19]} 50. Be2 {[%clk 0:00:24]}  e5 {[%clk 0:00:18]} 51. c5+ {[%clk 0:00:13]}  Kc6 {[%clk 0:00:17]} 52. Bc4 {[%clk 0:00:11]}  exd4+ {[%clk 0:00:08]} 53. Kxd4 {[%clk 0:00:11]}  Bxc4 {[%clk 0:00:07]} 54. Kxc4 {[%clk 0:00:12]}  e3 {[%clk 0:00:05]} 55. fxe3 {[%clk 0:00:12]}  fxe3 {[%clk 0:00:06]} 56. Kd3 {[%clk 0:00:12]}  Kxc5 {[%clk 0:00:06]} 57. Kxe3 {[%clk 0:00:12]}  Kd5 {[%clk 0:00:07]} 58. Kf3 {[%clk 0:00:12]}  Ke5 {[%clk 0:00:08]} 59. Kg4 {[%clk 0:00:12]}  Kf6 {[%clk 0:00:08]} 60. Kh5 {[%clk 0:00:12]}  Kf5 {[%clk 0:00:09]} 61. g4+ {[%clk 0:00:12]}  Kf4 {[%clk 0:00:08]} 62. Kh6 {[%clk 0:00:12]}  Kg3 {[%clk 0:00:09]} 63. Kxg5 {[%clk 0:00:12]}  Kxh3 {[%clk 0:00:09]} 64. Kf5 {[%clk 0:00:12]} 1-0


[Site "https://www.chess.com"]